fUST/lending_fUST_20250526
["ID","MTS","AMOUNT","RATE_DAILY","PERIOD"]
[362382739,1748237447708,-430.0,0.0002,2]
[362382740,1748237447717,-430.0,0.0002,2]
[362382741,1748237447726,-430.0,0.0002,2]
[362382742,1748237447736,-430.0,0.0002,2]
[362382743,1748237447745,-430.0,0.0002,2]
[362382744,1748237447755,-430.0,0.0002,2]
[362382745,1748237447764,-703.67,0.0002,2]
[362382746,1748237447773,-430.0,0.0002,2]
[362382747,1748237447782,-430.0,0.0002,2]
[362382748,1748237447792,-1813.92,0.0002,2]
[362382749,1748237447802,-430.0,0.0002,2]
[362382750,1748237447811,-430.0,0.0002,2]
[362382751,1748237447821,-430.0,0.0002,2]
[362382752,1748237447831,-430.0,0.0002,2]
[362382753,1748237447840,-430.0,0.0002,2]
[362382754,1748237447849,-2478.43,0.0002,2]
[362382755,1748237447858,-430.0,0.0002,2]
[362382756,1748237447868,-430.0,0.0002,2]
[362382757,1748237447877,-430.0,0.0002,2]
[362382758,1748237447886,-535.29,0.0002,2]
[362382759,1748237447895,-430.0,0.0002,2]
[362382760,1748237447905,-1876.3,0.0002,2]
[362382761,1748237447914,-430.0,0.0002,2]
[362382762,1748237447923,-430.0,0.0002,2]
[362382763,1748237447933,-630.88,0.0002,2]
[362382764,1748237447943,-430.0,0.0002,2]
[362382765,1748237447954,-430.0,0.0002,2]
[362382766,1748237447963,-430.0,0.0002,2]
[362382767,1748237447977,-448.85,0.0002,2]
[362382768,1748237447986,-430.0,0.0002,2]
[362382769,1748237447996,-430.0,0.0002,2]
[362382770,1748237448006,-430.0,0.0002,2]
[362382771,1748237448017,-430.0,0.0002,2]
[362382772,1748237448026,-430.0,0.0002,2]
[362382773,1748237448035,-876.58,0.0002,2]
[362382774,1748237448046,-794.35,0.0002,2]
[362382775,1748237448056,-584.38,0.0002,2]
[362382776,1748237448066,-151.0,0.0002,2]
[362382777,1748237448076,-156.45678361,0.00020024,2]
[362382778,1748237448085,-1007.43070087,0.00020038,2]
[362382779,1748237448095,-500.0,0.00020064,2]
[362382780,1748237448104,-223.877955,0.00020187,2]
[362382781,1748237448113,-379.00808083,0.0002021,2]
[362382782,1748237448123,-515.76414041,0.00020238,2]
[362382783,1748237448133,-1012.88895778,0.00020244,2]
[362382784,1748237448142,-1500.0,0.00020244,2]
[362382785,1748237448152,-1500.0,0.00020261,2]
[362382786,1748237448161,-430.0,0.00020273,2]
[362382787,1748237448171,-363.20018047,0.00020273,2]
[362382788,1748237448180,-430.0,0.00020273,2]
[362382789,1748237448190,-513.44639944,0.00020273,2]
[362382790,1748237448199,-151.0,0.00020273,2]
[362382791,1748237448209,-439.80137338,0.00020273,2]
[362382792,1748237448219,-430.0,0.00020273,2]
[362382793,1748237448229,-430.0,0.00020273,2]
[362382794,1748237448239,-430.0,0.00020273,2]
[362382795,1748237448248,-430.0,0.00020273,2]
[362382796,1748237448257,-430.0,0.00020273,2]
[362382797,1748237448267,-261.42046956,0.00020273,2]
[362382798,1748237448276,-430.0,0.00020273,2]
[362382799,1748237448285,-430.0,0.00020273,2]
[362382800,1748237448295,-291.85455669,0.00020273,2]
[362382801,1748237448304,-430.0,0.00020273,2]
[362382802,1748237448313,-430.0,0.00020273,2]
[362382803,1748237448323,-430.0,0.00020273,2]
[362382804,1748237448332,-430.0,0.00020273,2]
[362382805,1748237448343,-151.0,0.00020273,2]
[362382806,1748237448352,-430.0,0.00020273,2]
[362382807,1748237448362,-430.0,0.00020273,2]
[362382808,1748237448371,-430.0,0.00020273,2]
[362382809,1748237448380,-430.0,0.00020273,2]
[362382810,1748237448389,-151.0,0.00020273,2]
[362382811,1748237448398,-430.0,0.00020273,2]
[362382812,1748237448408,-430.0,0.00020273,2]
[362382813,1748237448417,-430.0,0.00020273,2]
[362382814,1748237448426,-430.0,0.00020273,2]
[362382815,1748237448435,-430.0,0.00020273,2]
[362382816,1748237448444,-430.0,0.00020273,2]
[362382817,1748237448453,-430.0,0.00020273,2]
[362382818,1748237448462,-430.0,0.00020273,2]
[362382819,1748237448472,-430.0,0.00020273,2]
[362382820,1748237448481,-430.0,0.00020273,2]
[362382821,1748237448490,-430.0,0.00020273,2]
[362382822,1748237448499,-430.0,0.00020273,2]
[362382823,1748237448508,-430.0,0.00020273,2]
[362382824,1748237448518,-430.0,0.00020273,2]
[362382825,1748237448527,-430.0,0.00020273,2]
[362382826,1748237448536,-430.0,0.00020273,2]
[362382827,1748237448546,-430.0,0.00020273,2]
[362382828,1748237448556,-430.0,0.00020273,2]
[362382829,1748237448566,-906.96,0.00020273,2]
[362382830,1748237448576,-970.85,0.00020273,2]
[362382831,1748237448586,-430.0,0.00020273,2]
[362382832,1748237448596,-430.0,0.00020273,2]
[362382833,1748237448607,-430.0,0.00020273,2]
[362382834,1748237448616,-430.0,0.00020273,2]
[362382835,1748237448625,-430.0,0.00020273,2]
[362382836,1748237448635,-430.0,0.00020273,2]
[362382837,1748237448644,-703.67,0.00020273,2]
[362382838,1748237448653,-430.0,0.00020273,2]
[362382839,1748237448662,-430.0,0.00020273,2]
[362382840,1748237448672,-1813.92,0.00020273,2]
[362382841,1748237448681,-430.0,0.00020273,2]
[362382842,1748237448690,-430.0,0.00020273,2]
[362382843,1748237448700,-430.0,0.00020273,2]
[362382844,1748237448709,-176.33826815,0.00020273,2]
[362382845,1748237448719,-544.5971203,0.00020273,2]
[362382846,1748237448729,-2478.43,0.00020273,2]
[362382847,1748237448738,-430.0,0.00020273,2]
[362382848,1748237448748,-430.0,0.00020273,2]
[362382849,1748237448757,-430.0,0.00020273,2]
[362382850,1748237448766,-535.29,0.00020273,2]
[362382851,1748237448775,-430.0,0.00020273,2]
[362382852,1748237448785,-1876.3,0.00020273,2]
[362382853,1748237448794,-430.0,0.00020273,2]
[362382854,1748237448804,-430.0,0.00020273,2]
[362382855,1748237448814,-630.88,0.00020273,2]
[362382856,1748237448824,-430.0,0.00020273,2]
[362382857,1748237448833,-430.0,0.00020273,2]
[362382858,1748237448844,-430.0,0.00020273,2]
[362382859,1748237448854,-448.85,0.00020273,2]
[362382860,1748237448863,-430.0,0.00020273,2]
[362382861,1748237448873,-430.0,0.00020273,2]
[362382862,1748237448882,-430.0,0.00020273,2]
[362382863,1748237448891,-430.0,0.00020273,2]
[362382864,1748237448902,-430.0,0.00020273,2]
[362382865,1748237448911,-876.58,0.00020273,2]
[362382866,1748237448920,-794.35,0.00020273,2]
[362382867,1748237448929,-584.38,0.00020273,2]
[362382868,1748237448939,-184.001826,0.00020273,2]
[362382869,1748237448948,-404.0,0.00020328,2]
[362382870,1748237448958,-967.611,0.00020328,2]
[362382871,1748237448970,-808.82854819,0.00020387,2]
[362382872,1748237448979,-501.3386895,0.00020416,2]
[362382873,1748237448990,-202.55430997,0.00020416,2]
[362382874,1748237448999,-379.00808083,0.00020486,3]
[362382875,1748237449010,-150.59,0.00020534,2]
[362382876,1748237449021,-150.962,0.00020534,2]
[362382877,1748237449030,-150.288,0.00020534,2]
[362382878,1748237449039,-172.0,0.00020539,2]
[362382879,1748237449050,-430.0,0.00020547,2]
[362382880,1748237449059,-452.60126908,0.00020547,2]
[362382881,1748237449068,-151.0,0.00020547,2]
[362382882,1748237449077,-167.69218135,0.00020547,2]
[362382883,1748237449087,-430.0,0.00020547,2]
[362382884,1748237449096,-430.0,0.00020547,2]
[362382885,1748237449107,-430.0,0.00020547,2]
[362382886,1748237449116,-430.0,0.00020547,2]
[362382887,1748237449126,-430.0,0.00020547,2]
[362382888,1748237449135,-242.35834049,0.00020547,2]
[362382889,1748237449144,-430.0,0.00020547,2]
[362382890,1748237449153,-430.0,0.00020547,2]
[362382891,1748237449162,-430.0,0.00020547,2]
[362382892,1748237449171,-430.0,0.00020547,2]
[362382893,1748237449181,-151.0,0.00020547,2]
[362382894,1748237449191,-430.0,0.00020547,2]
[362382895,1748237449200,-430.0,0.00020547,2]
[362382896,1748237449210,-430.0,0.00020547,2]
[362382897,1748237449219,-430.0,0.00020547,2]
[362382898,1748237449228,-430.0,0.00020547,2]
[362382899,1748237449237,-430.0,0.00020547,2]
[362382900,1748237449247,-430.0,0.00020547,2]
[362382901,1748237449256,-430.0,0.00020547,2]
[362382902,1748237449265,-430.0,0.00020547,2]
[362382903,1748237449274,-430.0,0.00020547,2]
[362382904,1748237449284,-430.0,0.00020547,2]
[362382905,1748237449294,-430.0,0.00020547,2]
[362382906,1748237449303,-430.0,0.00020547,2]
[362382907,1748237449423,-430.0,0.00020547,2]
[362382908,1748237449432,-430.0,0.00020547,2]
[362382909,1748237449441,-430.0,0.00020547,2]
[362382910,1748237449451,-430.0,0.00020547,2]
[362382911,1748237449460,-154.47113686,0.00020547,2]
[362382912,1748237449470,-430.0,0.00020547,2]
[362382913,1748237449480,-430.0,0.00020547,2]
[362382914,1748237449490,-430.0,0.00020547,2]
[362382915,1748237449499,-430.0,0.00020547,2]
[362382916,1748237449515,-906.96,0.00020547,2]
[362382917,1748237449529,-970.85,0.00020547,2]
[362382918,1748237449540,-430.0,0.00020547,2]
[362382919,1748237449549,-430.0,0.00020547,2]
[362382920,1748237449558,-430.0,0.00020547,2]
[362382921,1748237449568,-430.0,0.00020547,2]
[362382922,1748237449577,-430.0,0.00020547,2]
[362382923,1748237449587,-430.0,0.00020547,2]
[362382924,1748237449596,-703.67,0.00020547,2]
[362382925,1748237449606,-430.0,0.00020547,2]
[362382926,1748237449616,-430.0,0.00020547,2]
[362382927,1748237449625,-1813.92,0.00020547,2]
[362382928,1748237449635,-430.0,0.00020547,2]
[362382929,1748237449644,-430.0,0.00020547,2]
[362382930,1748237449654,-430.0,0.00020547,2]
[362382931,1748237449663,-2478.43,0.00020547,2]
[362382932,1748237449673,-430.0,0.00020547,2]
[362382933,1748237449683,-430.0,0.00020547,2]
[362382934,1748237449693,-430.0,0.00020547,2]
[362382935,1748237449702,-535.29,0.00020547,2]
[362382936,1748237449712,-430.0,0.00020547,2]
[362382937,1748237449722,-1876.3,0.00020547,2]
[362382938,1748237449731,-350.0,0.00020547,2]
[362382939,1748237449741,-430.0,0.00020547,2]
[362382940,1748237449751,-630.88,0.00020547,2]
[362382941,1748237449760,-430.0,0.00020547,2]
[362382942,1748237449770,-430.0,0.00020547,2]
[362382943,1748237449779,-448.85,0.00020547,2]
[362382944,1748237449789,-430.0,0.00020547,2]
[362382945,1748237449799,-430.0,0.00020547,2]
[362382946,1748237449809,-430.0,0.00020547,2]
[362382947,1748237449818,-430.0,0.00020547,2]
[362382948,1748237449827,-430.0,0.00020547,2]
[362382949,1748237449837,-876.58,0.00020547,2]
[362382950,1748237449846,-794.35,0.00020547,2]
[362382951,1748237449855,-584.38,0.00020547,2]
[362382952,1748237449865,-500.0,0.0002074,2]
[362382953,1748237449875,-379.00808083,0.00020762,3]
[362382954,1748237449884,-2000.0,0.00020792,2]
[362382955,1748237449893,-549.90436021,0.00020809,2]
[362382956,1748237449902,-430.0,0.00020821,2]
[362382957,1748237449911,-430.0,0.00020821,2]
[362382958,1748237449920,-430.0,0.00020821,2]
[362382959,1748237449929,-430.0,0.00020821,2]
[362382960,1748237449938,-430.0,0.00020821,2]
[362382961,1748237449947,-430.0,0.00020821,2]
[362382962,1748237449957,-430.0,0.00020821,2]
[362382963,1748237449967,-430.0,0.00020821,2]
[362382964,1748237449979,-430.0,0.00020821,2]
[362382965,1748237449988,-430.0,0.00020821,2]
[362382966,1748237449998,-151.0,0.00020821,2]
[362382967,1748237450007,-430.0,0.00020821,2]
[362382968,1748237450018,-430.0,0.00020821,2]
[362382969,1748237450028,-430.0,0.00020821,2]
[362382970,1748237450037,-430.0,0.00020821,2]
[362382971,1748237450046,-430.0,0.00020821,2]
[362382972,1748237450058,-430.0,0.00020821,2]
[362382973,1748237450068,-430.0,0.00020821,2]
[362382974,1748237450077,-430.0,0.00020821,2]
[362382975,1748237450087,-430.0,0.00020821,2]
[362382976,1748237450096,-430.0,0.00020821,2]
[362382977,1748237450105,-430.0,0.00020821,2]
[362382978,1748237450114,-430.0,0.00020821,2]
[362382979,1748237450125,-430.0,0.00020821,2]
[362382980,1748237450135,-430.0,0.00020821,2]
[362382981,1748237450145,-430.0,0.00020821,2]
[362382982,1748237450155,-430.0,0.00020821,2]
[362382983,1748237450164,-430.0,0.00020821,2]
[362382984,1748237450174,-430.0,0.00020821,2]
[362382985,1748237450183,-906.96,0.00020821,2]
[362382986,1748237450192,-970.85,0.00020821,2]
[362382987,1748237450201,-430.0,0.00020821,2]
[362382988,1748237450210,-430.0,0.00020821,2]
[362382989,1748237450219,-430.0,0.00020821,2]
[362382990,1748237450229,-430.0,0.00020821,2]
[362382991,1748237450238,-703.67,0.00020821,2]
[362382992,1748237450247,-430.0,0.00020821,2]
[362382993,1748237450256,-430.0,0.00020821,2]
[362382994,1748237450265,-1813.92,0.00020821,2]
[362382995,1748237450274,-430.0,0.00020821,2]
[362382996,1748237450283,-430.0,0.00020821,2]
[362382997,1748237450293,-430.0,0.00020821,2]
[362382998,1748237450303,-2478.43,0.00020821,2]
[362382999,1748237450313,-430.0,0.00020821,2]
[362383000,1748237450323,-430.0,0.00020821,2]
[362383001,1748237450332,-535.29,0.00020821,2]
[362383002,1748237450341,-430.0,0.00020821,2]
[362383003,1748237450350,-1876.3,0.00020821,2]
[362383004,1748237450360,-430.0,0.00020821,2]
[362383005,1748237450369,-630.88,0.00020821,2]
[362383006,1748237450378,-430.0,0.00020821,2]
[362383007,1748237450387,-430.0,0.00020821,2]
[362383008,1748237450397,-448.85,0.00020821,2]
[362383009,1748237450406,-430.0,0.00020821,2]
[362383010,1748237450415,-430.0,0.00020821,2]
[362383011,1748237450423,-430.0,0.00020821,2]
[362383012,1748237450432,-430.0,0.00020821,2]
[362383013,1748237450441,-430.0,0.00020821,2]
[362383014,1748237450451,-876.58,0.00020821,2]
[362383015,1748237450460,-794.35,0.00020821,2]
[362383016,1748237450469,-584.38,0.00020821,2]
[362383017,1748237450478,-41225.27981688,0.00020884,2]
[362383018,1748237450487,-500.0,0.00020917,7]
[362383019,1748237450496,-500.0,0.00020917,7]
[362383020,1748237450506,-500.0,0.00020917,7]
[362383021,1748237450515,-500.0,0.00020917,7]
[362383022,1748237450525,-500.0,0.00020917,7]
[362383023,1748237450534,-631.34,0.00020917,7]
[362383024,1748237450544,-201.11,0.00020917,7]
[362383025,1748237450553,-500.80269898,0.00020927,2]
[362383026,1748237450563,-501.55809578,0.00020927,2]
[362383027,1748237450572,-7391.0,0.00021,2]
[362383028,1748237450581,-377.82367498,0.00021,2]
[362383029,1748237450591,-10000.0,0.00021,5]
[362383030,1748237450600,-10000.0,0.00021,5]
[362383031,1748237450610,-4157.78426882,0.00021,5]
[362383032,1748237450718,-3311.30032822,0.00021,5]
[362383033,1748237451608,-430.0,0.00019178,2]
[362383034,1748237451617,-258.58863095,0.00019452,2]
[362383035,1748237452271,-151.0,0.00018,2]
[362383036,1748237452281,-76.77291748,0.00019452,2]
[362383040,1748237871335,16853.0,0.00021918,30]
[362383042,1748238440019,-201.490159,0.00013699,2]
[362383043,1748238440044,-84.509841,0.00016537,2]
[362383087,1748238631849,-151.35,0.00016472,2]
[362383089,1748238631859,-522.56,0.00017622,2]
[362383091,1748238631870,-227.469831,0.00017997,2]
[362383093,1748238631880,-84.9411287,0.00018011,2]
[362383095,1748238631893,-140.4738508,0.00018011,2]
[362383097,1748238631903,-625.56377968,0.00018118,2]
[362383099,1748238631912,-3804.14988646,0.00018678,2]
[362383101,1748238631921,-207.4,0.00018689,2]
[362383103,1748238631931,-47.42837899,0.000187,2]
[362383314,1748238640078,-4483.41309942,0.000187,2]
[362383315,1748238640090,-156.22453145,0.00019078,2]
[362383316,1748238640100,-500.0,0.00019177,2]
[362383317,1748238640110,-172.68236913,0.00019177,2]
[362383363,1748238645962,-327.31763087,0.00019177,2]
[362383364,1748238645972,-53.86558377,0.00019177,2]
[362383393,1748239832351,-500.0,0.00013699,2]
[362383395,1748239832361,-293.03353784,0.00013699,2]
[362383397,1748239832371,-199.699158,0.00013699,2]
[362383399,1748239832380,-165.3,0.00017645,2]
[362383401,1748239832390,-539.6958197,0.00018063,2]
[362383403,1748239832400,-192.85,0.00018747,2]
[362383405,1748239832409,-461.92423454,0.00018831,2]
[362383408,1748239832419,-182.93390462,0.000189,2]
[362383411,1748239832428,-207.4,0.00018989,2]
[362383414,1748239832438,-500.0,0.00019,2]
[362383417,1748239832448,-156.99085315,0.0001907,2]
[362383419,1748239832458,-1508.70979712,0.0001907,2]
[362383421,1748239832468,-461.92423454,0.00019121,2]
[362383423,1748239832478,-500.0,0.00019169,2]
[362383425,1748239832487,-500.0,0.00019169,2]
[362383427,1748239832498,-459.75293137,0.00019169,2]
[362383429,1748239832507,-500.0,0.00019169,2]
[362383431,1748239832516,-500.0,0.00019169,2]
[362383433,1748239832526,-500.0,0.00019169,2]
[362383435,1748239832536,-294.40443799,0.00019169,2]
[362383437,1748239832546,-500.0,0.00019169,2]
[362383439,1748239832556,-500.0,0.00019169,2]
[362383441,1748239832565,-500.0,0.00019169,2]
[362383443,1748239832575,-500.0,0.00019169,2]
[362383445,1748239832584,-101.37212012,0.00019169,2]
[362383682,1748240926603,-197.997707,0.00013699,2]
[362383724,1748241032131,-169.08,0.00014885,2]
[362383725,1748241032141,-883.0,0.00014999,2]
[362383726,1748241032152,-3282.50289037,0.00015,2]
[362383727,1748241032163,-407.52653734,0.00015,2]
[362383728,1748241032173,-342.23130186,0.00015,2]
[362383730,1748241032185,-225.44,0.0001603,2]
[362383732,1748241032194,-281.8,0.00017176,2]
[362383734,1748241032204,-4029.7756813,0.00017945,2]
[362383736,1748241032214,-2228.45808606,0.00017999,3]
[362383744,1748241038022,-166.26067992,0.00017999,3]
[362383745,1748241038032,-4747.49783594,0.00018,2]
[362383801,1748241040397,-17566.73545713,0.00018,2]
[362383803,1748241040408,-4377.26454287,0.00018,2]
[362383805,1748241040420,-3181.91162414,0.00018,2]
[362383929,1748241140031,255.32,0.0001353,2]
[362383930,1748241141176,-367.38209256,0.00014658,2]
[362383931,1748241145255,-15.59790744,0.00014658,2]
[362383932,1748241145283,-414.40209256,0.00015785,2]
[362383933,1748241212233,220.11,0.00013523,2]
[362383935,1748241285333,212.11,0.00013525,2]
[362383937,1748241357575,204.39,0.00013528,2]
[362383938,1748241430107,196.96,0.00013527,2]
[362383939,1748241475303,155.49255545,6e-07,2]
[362383940,1748241475394,155.49255545,6e-07,2]
[362383941,1748241501631,189.8,0.00013546,2]
[362383943,1748241509864,206.319823,0.00013699,2]
[362383944,1748241572903,182.9,0.00013524,2]
[362383945,1748241645659,176.25,0.00013517,2]
[362383946,1748241718229,169.84,0.00013518,2]
[362383948,1748241790214,163.66,0.00013518,2]
[362383950,1748241831532,2855.86689762,0.00021918,120]
[362383951,1748241862544,157.71,0.00013541,2]
[362383954,1748241934785,151.98,0.00013636,2]
[362383958,1748242213903,1000.0,0.00014,2]
[362383998,1748242232319,-219.67,0.00014811,2]
[362384000,1748242232329,-292.9,0.0001595,2]
[362384003,1748242232339,-225.20296069,0.00016471,2]
[362384005,1748242232350,-187.6058313,0.00016476,2]
[362384007,1748242232359,-11508.56971947,0.00016572,2]
[362384018,1748242232463,-6744.91693033,0.00016572,2]
[362384020,1748242232473,-1111.9212983,0.0001698,2]
[362384022,1748242232484,-252.56490249,0.00017089,2]
[362384024,1748242232494,-500.0,0.00017089,2]
[362384026,1748242232504,-500.0,0.00017089,2]
[362384028,1748242232514,-500.0,0.00017089,2]
[362384030,1748242232524,-347.45859477,0.00017089,2]
[362384032,1748242232534,-500.0,0.00017089,2]
[362384034,1748242232547,-500.0,0.00017089,2]
[362384037,1748242232557,-300.0,0.00017089,2]
[362384039,1748242232567,-404.03949629,0.00017089,2]
[362384041,1748242232577,-500.0,0.00017089,2]
[362384043,1748242232586,-500.0,0.00017089,2]
[362384045,1748242232596,-500.0,0.00017089,2]
[362384047,1748242232606,-479.23745557,0.00017089,2]
[362384049,1748242232615,-500.0,0.00017089,2]
[362384051,1748242232625,-500.0,0.00017089,2]
[362384053,1748242232636,-500.0,0.00017089,2]
[362384055,1748242232647,-372.96557245,0.00017089,2]
[362384057,1748242232656,-500.0,0.00017089,2]
[362384076,1748242232858,-500.0,0.00017089,2]
[362384078,1748242232869,-500.0,0.00017089,2]
[362384080,1748242232879,-500.0,0.00017089,2]
[362384082,1748242232889,-500.0,0.00017089,2]
[362384084,1748242232899,-179.4404438,0.00017089,2]
[362384086,1748242232909,-500.0,0.00017089,2]
[362384088,1748242232918,-500.0,0.00017089,2]
[362384089,1748242232928,-500.0,0.00017089,2]
[362384091,1748242232938,-500.0,0.00017089,2]
[362384093,1748242232948,-500.0,0.00017089,2]
[362384095,1748242232957,-500.0,0.00017089,2]
[362384097,1748242232967,-366.12,0.0001709,2]
[362384098,1748242232976,-375.33826781,0.0001745,2]
[362384100,1748242232986,-314.9844306,0.00017556,2]
[362384102,1748242232996,-156.99085313,0.00017891,2]
[362384104,1748242233005,-446.85238885,0.000179,2]
[362384106,1748242233017,-776.29908863,0.000179,2]
[362384108,1748242233027,-300.0,0.00017986,2]
[362384110,1748242233036,-300.0,0.00017986,2]
[362384112,1748242233046,-300.0,0.00017986,2]
[362384114,1748242233056,-300.0,0.00017986,2]
[362384115,1748242233066,-10036.9134263,0.00017987,2]
[362384117,1748242233076,-633.21,0.0001799,3]
[362384119,1748242233085,-316.6,0.0001799,3]
[362384121,1748242233095,-158.3,0.0001799,3]
[362384123,1748242233105,-474.95,0.0001799,3]
[362384124,1748242233115,-1197.35938299,0.00017991,3]
[362384126,1748242233125,-151.0,0.00017992,2]
[362384128,1748242233135,-151.0,0.00017992,2]
[362384130,1748242233145,-151.0,0.00017992,2]
[362384132,1748242233155,-151.0,0.00017992,2]
[362384133,1748242233164,-151.0,0.00017992,2]
[362384135,1748242233173,-151.0,0.00017992,2]
[362384137,1748242233183,-151.0,0.00017992,2]
[362384139,1748242233193,-151.0,0.00017992,2]
[362384141,1748242233203,-151.0,0.00017992,2]
[362384142,1748242233212,-151.0,0.00017992,2]
[362384144,1748242233222,-300.960521,0.00017992,2]
[362384146,1748242233231,-151.0,0.00017994,2]
[362384148,1748242233242,-151.0,0.00017994,2]
[362384150,1748242233251,-151.0,0.00017994,2]
[362384152,1748242233261,-151.0,0.00017996,2]
[362384153,1748242233270,-257.984365,0.00017996,2]
[362384155,1748242233280,-165.69785,0.00017996,2]
[362384157,1748242233290,-165.69785,0.00017996,2]
[362384159,1748242233299,-165.69785,0.00017996,2]
[362384161,1748242233309,-165.69785,0.00017996,2]
[362384162,1748242233318,-165.69785,0.00017996,2]
[362384164,1748242233328,-165.69785,0.00017996,2]
[362384166,1748242233337,-163.140618,0.00017996,2]
[362384168,1748242233347,-151.0,0.00017999,2]
[362384170,1748242233359,-165.69785,0.00017999,2]
[362384172,1748242233370,-165.69785,0.00017999,2]
[362384174,1748242233380,-165.69785,0.00017999,2]
[362384176,1748242233389,-165.69785,0.00017999,2]
[362384178,1748242233399,-151.0,0.00017999,2]
[362384180,1748242233409,-151.0,0.00017999,2]
[362384181,1748242233418,-151.0,0.00017999,2]
[362384183,1748242233428,-151.0,0.00017999,2]
[362384185,1748242233438,-500.0,0.00017999,2]
[362384187,1748242233449,-500.0,0.00017999,2]
[362384189,1748242233458,-309.52782188,0.00017999,2]
[362384191,1748242233468,-500.0,0.00017999,2]
[362384193,1748242233478,-500.0,0.00017999,2]
[362384195,1748242233487,-500.0,0.00017999,2]
[362384196,1748242233497,-500.0,0.00017999,2]
[362384198,1748242233506,-457.53824028,0.00017999,2]
[362384200,1748242233516,-11211.51337734,0.00018,2]
[362384202,1748242233525,-29317.57591153,0.00018,2]
[362384278,1748242270840,303.47,0.00012549,2]
[362384279,1748242271323,606.95,0.0001369,2]
[362384281,1748242342877,470.6,0.00012511,2]
[362384282,1748242343308,941.21,0.00013649,2]
[362384283,1748242416893,444.93,0.00012504,2]
[362384284,1748242417279,889.87,0.00013641,2]
[362384287,1748242480066,-2634.17037028,0.0001463,2]
[362384288,1748242480097,-1334.8,0.00014778,2]
[362384289,1748242480130,-992.02962972,0.00015915,2]
[362384290,1748242488145,378.36,0.00012507,2]
[362384291,1748242488569,756.72,0.00013644,2]
[362384292,1748242545553,-4960.68,0.00014633,2]
[362384293,1748242545579,-941.32,0.00014781,2]
[362384294,1748242559576,340.61,0.00012503,2]
[362384295,1748242559998,681.21,0.0001364,2]
[362384296,1748242612884,-4445.0,0.00014633,2]
[362384297,1748242631102,402.84,0.00012518,2]
[362384298,1748242631515,805.68,0.00013656,2]
[362384300,1748242638844,227.255877,0.00013699,2]
[362384301,1748242702013,380.87,0.00012508,2]
[362384302,1748242702452,761.74,0.00013645,2]
[362384303,1748242774092,360.09,0.00012511,2]
[362384304,1748242774640,720.19,0.00013648,2]
[362384305,1748242845991,340.45,0.00012505,2]
[362384306,1748242846453,680.9,0.00013642,2]
[362384307,1748242917828,321.88,0.00012505,2]
[362384308,1748242918242,643.76,0.00013642,2]
[362384310,1748242945670,-965.64,0.00014779,2]
[362384311,1748242945693,-844.0,0.00014781,2]
[362384312,1748242945715,-300.0,0.00014781,2]